fUSD/lending_fUSD_20250419
["ID","MTS","AMOUNT","RATE_DAILY","PERIOD"]
[358395970,1745062647906,300.0,0.00019,2]
[358395971,1745062844578,1312.52,0.00017505,2]
[358395972,1745063242131,-150.0,0.00019301,2]
[358395973,1745063242152,-200.0,0.00019313,2]
[358395974,1745063242175,-343.63330347,0.00019342,2]
[358395976,1745063425117,-150.88102251,0.00019245,2]
[358395977,1745063425139,-656.36669653,0.00019342,2]
[358395978,1745063425160,-250.0,0.00019358,2]
[358395979,1745063425181,-2377.8,0.00019431,2]
[358395980,1745063425203,-193.42,0.00019462,2]
[358395981,1745063425224,-161.95,0.00019493,2]
[358395982,1745063425248,-1577.76,0.00019538,2]
[358395983,1745063425269,-171.744,0.000196,2]
[358395984,1745063425291,-300.0,0.00019764,2]
[358395985,1745063425313,-300.0,0.00019764,2]
[358395986,1745063425336,-460.07828096,0.00019765,2]
[358395994,1745063432118,-503.4735659,0.00019765,2]
[358395995,1745063432129,-310.31,0.00019765,2]
[358395996,1745063432249,-574.01311803,0.00019765,2]
[358395997,1745063432262,-8665.77266529,0.00019765,2]
[358395998,1745063432276,-10653.32572328,0.00019765,2]
[358396002,1745063432397,-255.97559429,0.00019765,2]
[358396004,1745063432410,-697.08410392,0.00019765,2]
[358396007,1745063432422,-498.40740433,0.00019765,2]
[358396008,1745063432437,-270.33973497,0.00019765,2]
[358396012,1745063432461,-700.0,0.00019765,2]
[358396023,1745063432551,-311.21980903,0.00019765,2]
[358396025,1745063432563,-138.78019097,0.00019765,2]
[358396028,1745063432580,-426.36644233,0.00019765,2]
[358396030,1745063432594,-779.1,0.00019765,2]
[358396032,1745063432608,-1315.05914698,0.00019765,2]
[358396034,1745063432626,-438.25924277,0.00019765,2]
[358396036,1745063438266,-5760.30497695,0.00019765,2]
[358396037,1745063438277,-2557.04502268,0.00019765,2]
[358396038,1745063438290,-403.24149175,0.00019765,2]
[358396039,1745063438319,-78.00348557,0.00019765,2]
[358396040,1745063438330,-527.52,0.00019765,2]
[358396041,1745063438341,-1297.9375066,0.00019765,2]
[358396042,1745063438355,-528.58785162,0.00019765,2]
[358396043,1745063438373,-4614.65464178,0.00019765,2]
[358396044,1745063438383,-150.99,0.00019765,2]
[358396045,1745063438396,-150.99,0.00019765,2]
[358396046,1745063438407,-5175.14001429,0.00019765,2]
[358396047,1745063438480,-1621.21998571,0.00019765,2]
[358396048,1745063438492,-2.70408372,0.00019769,2]
[358396049,1745063438533,-1309.81591628,0.00019769,2]
[358396050,1745063438545,-273.5712746,0.00019799,2]
[358396051,1745063438556,-1040.00247903,0.00019809,2]
[358396052,1745063438567,-3973.79454572,0.0001981,2]
[358396123,1745063444652,-36435.31313155,0.0001981,2]
[358396124,1745063444663,-794.0,0.00019949,2]
[358396125,1745063444672,-546.0,0.00019949,2]
[358396126,1745063444682,-940.763,0.00019949,2]
[358396127,1745063444693,-1440.0,0.00019949,2]
[358396128,1745063444703,-576.0,0.00019949,2]
[358396129,1745063444715,-196.0,0.00019949,2]
[358396130,1745063444725,-152.0,0.00019949,2]
[358396131,1745063444735,-500.0,0.00019973,2]
[358396132,1745063444745,-13859.30427226,0.0002,2]
[358396133,1745063444754,-641851.85959201,0.0002,2]
[358396134,1745063444768,-25406.83030107,0.0002,2]
[358396171,1745063726175,-259.8927109,0.00019799,2]
[358396172,1745063744458,-227.1072891,0.0001985,2]
[358396173,1745064249485,1181.26,0.00017649,2]
[358396174,1745064260945,10000.0,0.00048139,30]
[358396175,1745064326580,2011.96,0.00048139,30]
[358396176,1745064415518,950.0,0.00048139,60]
[358396177,1745064439937,610000.0,0.00048139,30]
[358396178,1745064474398,250.0,0.00017,2]
[358396179,1745064475515,300.0,0.00019,2]
[358396396,1745064638312,-829.34,0.00019413,2]
[358396397,1745064638324,-250.0,0.00019433,2]
[358396398,1745064638335,-185.5,0.00019452,2]
[358396399,1745064638346,-899.38068461,0.00019489,2]
[358396400,1745064638628,-793.13,0.00019489,2]
[358396585,1745064640735,-5899.49931539,0.00019489,2]
[358396587,1745064640745,-250.0,0.00019567,2]
[358396589,1745064640755,-1000.0,0.00019591,2]
[358396591,1745064640765,-300.0,0.00019595,2]
[358396593,1745064640774,-171.744,0.000196,2]
[358396595,1745064640783,-246.8980753,0.00019799,2]
[358396597,1745064640793,-300.0,0.00019899,2]
[358396599,1745064640803,-150.99,0.00019899,2]
[358396601,1745064640813,-1828.98834701,0.000199,2]
[358396603,1745064640824,-103.46992335,0.00019913,2]
[358396609,1745064640875,-1077.79007665,0.00019913,2]
[358396611,1745064640886,-794.0,0.00019949,2]
[358396614,1745064640900,-907.0,0.00019949,2]
[358396615,1745064640913,-546.0,0.00019949,2]
[358396618,1745064640925,-5256.48692404,0.0002,2]
[358397021,1745064645151,-1673.16521209,0.0002,2]
[358397023,1745064645160,-265195.88996223,0.0002,2]
[358397025,1745064645173,-72448.11420748,0.0002,2]
[358397159,1745064646626,-843.99315001,0.0002,2]
[358397658,1745064906206,976.87,0.00019,2]
[358397659,1745064907848,976.87,0.00019,2]
[358397660,1745064909514,976.87,0.00019,2]
[358397661,1745064950820,801.43,0.00048139,30]
[358397662,1745065400443,1194.06,0.00018145,2]
[358397663,1745065458372,-164.52263386,0.00019195,2]
[358397665,1745065633131,-835.47736614,0.00019195,2]
[358397666,1745065633151,-40.54345549,0.00019259,2]
[358397667,1745065717746,499.999999,0.00048167,120]
[358397669,1745065748451,1680.01,7.945e-05,2]
[358397670,1745065748474,9697.252983,7.945e-05,2]
[358397671,1745065752130,500.0,0.00048167,120]
[358397676,1745065768984,155.0,0.00048167,30]
[358397677,1745065783314,500.0,0.00048167,120]
[358397679,1745065820550,-161.95,0.0001918,2]
[358397680,1745065820572,-250.0,0.0001922,2]
[358397681,1745065820594,-209.45654451,0.00019259,2]
[358397682,1745065820617,-184.51,0.00019277,2]
[358397683,1745065820639,-500.0,0.00019382,2]
[358397684,1745065820661,-193.42,0.00019422,2]
[358397685,1745065820682,-200.0,0.000195,2]
[358397686,1745065820704,-234.5531716,0.00019799,2]
[358397687,1745065820724,-976.87,0.000198,2]
[358397688,1745065820746,-300.0,0.00019805,2]
[358397689,1745065820768,-3145.24028389,0.00019806,2]
[358397690,1745065825144,25702.7186351,0.00048167,30]
[358397698,1745065831606,-1021.332,0.00019806,2]
[358397723,1745065837697,-19733.42771611,0.00019806,2]
[358397724,1745065837883,-14346.25691897,0.00019806,2]
[358397725,1745065837893,-250.0,0.00019878,2]
[358397726,1745065837903,-160.54,0.000199,2]
[358397727,1745065837912,-164.52263386,0.000199,2]
[358397729,1745065837921,-907.0,0.00019959,2]
[358397730,1745065837931,-546.0,0.00019959,2]
[358397731,1745065837941,-152.0,0.00019959,2]
[358397732,1745065837950,-4052.359,0.00019959,2]
[358397733,1745065837960,-171.744,0.00019985,2]
[358397734,1745065837969,-3301.2822849,0.00019986,2]
[358397736,1745065837979,-36540.7062108,0.00019986,2]
[358397743,1745065842806,-642.7423268,0.00019986,2]
[358397744,1745065842816,-3464.82606806,0.0002,2]
[358397745,1745065842825,-251775.78308584,0.0002,2]
[358397746,1745065842840,-73837.60381261,0.0002,2]
[358397747,1745065842849,-1221.5783592,0.0002,2]
[358397748,1745065842859,-353377.70132655,0.0002,2]
[358397749,1745065842882,-1671.90181533,0.0002,2]
[358397750,1745065844537,-415405.32891233,0.0002,2]
[358397751,1745065844548,-198206.03375155,0.0002,2]
[358397753,1745065845446,-399.03551999,0.0002,2]
[358397851,1745065867962,500.0,0.00048167,120]
[358397852,1745065888406,500.0,0.00048167,120]
[358397853,1745065908082,500.0,0.00048167,120]
[358397854,1745065926845,500.0,0.00048167,120]
[358397855,1745065971421,500.0,0.00048167,120]
[358397856,1745065998988,500.0,0.00048167,120]
[358397857,1745066023608,500.0,0.00048177,120]
[358397858,1745066068819,500.0,0.00048177,120]
[358397859,1745066117703,500.0,0.00048177,120]
[358397860,1745066138131,500.0,0.00048177,120]
[358397861,1745066170229,500.0,0.00048177,120]
[358397862,1745066197365,500.0,0.00048177,120]
[358397863,1745066226140,500.0,0.00048177,120]
[358397864,1745066259559,500.0,0.00048177,120]
[358397865,1745066283107,500.0,0.00048177,120]
[358397866,1745066288467,302.747017,7.945e-05,2]
[358397867,1745066288490,4507.370106,7.945e-05,2]
[358397868,1745066301247,250.0,0.00017,2]
[358397869,1745066302313,300.0,0.00019,2]
[358397870,1745066305435,500.0,0.00048177,120]
[358397871,1745066327245,500.0,0.00048191,120]
[358397872,1745066377852,500.0,0.00048191,120]
[358397873,1745066396356,500.0,0.00048191,120]
[358397874,1745066402176,1134.35,0.00018312,2]
[358397875,1745066415473,500.0,0.00048191,120]
[358397876,1745066439844,500.0,0.00048191,120]
[358397877,1745066461832,500.0,0.00048191,120]
[358397878,1745066503472,500.0,0.00048191,120]
[358397879,1745066521229,500.0,0.00048191,120]
[358397880,1745066555875,500.0,0.00048191,120]
[358397881,1745066583057,500.0,0.00048191,120]
[358397882,1745066603093,-500.0,0.00032876,120]
[358397883,1745066603122,-500.0,0.00032876,120]
[358397884,1745066603149,-340.73129454,0.00032876,120]
[358397885,1745066603180,-171.74497033,0.00039505,55]
[358397886,1745066603214,-1191.91900339,0.00040658,120]
[358397887,1745066603242,-20973.94582456,0.000411,30]
[358397888,1745066603271,-6893.39,0.00042,30]
[358397889,1745066603301,-33343.0,0.00045,120]
[358397890,1745066603330,-319.109529,0.00045,120]
[358397891,1745066603359,-696.747102,0.00045,120]
[358397892,1745066603390,-203.0,0.0004527,30]
[358397893,1745066603417,-319.109529,0.00046224,120]
[358397894,1745066603442,-696.747102,0.00046224,120]
[358397895,1745066603468,-203.0,0.0004686,30]
[358397896,1745066603497,-319.109529,0.00047448,120]
[358397897,1745066603524,-696.747102,0.00047448,120]
[358397898,1745066603552,-395.39734706,0.00047883,30]
[358397899,1745066603579,-767.28560457,0.00048,120]
[358397900,1745066603607,-319.109529,0.00048,60]
[358397901,1745066603635,-200.0,0.00048,30]
[358397902,1745066603662,-696.747102,0.00048,60]
[358397903,1745066603687,-179.39003057,0.00048,120]
[358397904,1745066603713,-2990.0,0.00048167,30]
[358397905,1745066603745,-319.109529,0.00048338,60]
[358397906,1745066603771,-696.747102,0.00048338,60]
[358397907,1745066603797,-203.0,0.0004845,30]
[358397908,1745066603824,-319.109529,0.00048673,120]
[358397909,1745066603851,-696.747102,0.00048673,120]
[358397910,1745066603876,-319.109529,0.00048675,60]
[358397911,1745066603903,-696.747102,0.00048675,60]
[358397912,1745066603930,-319.109529,0.00049012,60]
[358397913,1745066603956,-696.747102,0.00049012,60]
[358397914,1745066603982,-319.109529,0.0004935,60]
[358397915,1745066604007,-159.573476,0.0004935,60]
[358397916,1745066604033,-173.000331,0.0004935,60]
[358397917,1745066604060,-696.747102,0.0004935,60]
[358397918,1745066604086,-150.0,0.000494,120]
[358397919,1745066604113,-319.109529,0.00049897,120]
[358397920,1745066604141,-159.573476,0.00049897,120]
[358397921,1745066604169,-168.296334,0.00049897,120]
[358397922,1745066604196,-173.000331,0.00049897,120]
[358397923,1745066604223,-696.747102,0.00049897,120]
[358397924,1745066604251,-153.0,0.00049977,60]
[358397925,1745066604278,-153.0,0.00050011,60]
[358397926,1745066604306,-153.0,0.00050014,60]
[358397927,1745066604332,-153.0,0.00050014,60]
[358397928,1745066604358,-153.0,0.00050014,60]
[358397929,1745066604389,-153.0,0.00050014,60]
[358397930,1745066604415,-153.0,0.00050014,60]
[358397931,1745066604442,-203.0,0.0005003,30]
[358397932,1745066604467,-209.0,0.0005003,30]
[358397933,1745066604493,-153.0,0.0005004,60]
[358397934,1745066604519,-153.0,0.0005004,60]
[358397935,1745066604545,-153.0,0.0005004,60]
[358397936,1745066604572,-153.0,0.0005004,60]
[358397937,1745066604600,-153.0,0.0005004,60]
[358397938,1745066604627,-153.0,0.00050059,60]
[358397939,1745066604652,-153.0,0.00050059,60]
[358397940,1745066604680,-153.0,0.00050059,60]
[358397941,1745066604707,-153.0,0.00050059,60]
[358397942,1745066604734,-153.0,0.00050059,60]
[358397943,1745066604763,-153.0,0.0005008,60]
[358397944,1745066604791,-153.0,0.0005008,60]
[358397945,1745066604819,-153.0,0.0005008,60]
[358397946,1745066604851,-153.0,0.0005008,60]
[358397947,1745066604884,-153.0,0.0005008,60]
[358397948,1745066604917,-153.0,0.00050127,60]
[358397949,1745066604949,-153.0,0.00050127,60]
[358397950,1745066604978,-500.0,0.00050959,120]
[358397951,1745066605006,-500.0,0.00050959,120]
[358397952,1745066605035,-64744.24194024,0.00051,60]
[358397953,1745066605065,-617.43976199,0.00051507,120]
[358397954,1745066605095,-500.0,0.00051507,120]
[358397955,1745066605123,-203.0,0.0005162,30]
[358397956,1745066605152,-209.0,0.0005162,30]
[358397957,1745066605180,-500.0,0.00052055,120]
[358397958,1745066605210,-3596.23690213,0.000525,120]
[358397959,1745066605394,-500.0,0.00052603,120]
[358397960,1745066605429,-203.0,0.0005321,30]
[358397961,1745066605463,-209.0,0.0005321,30]
[358397962,1745066605495,-306.85,0.00053726,30]
[358397963,1745066605525,-200.000005,0.00054,30]
[358397964,1745066605556,-49158.145259,0.00054,120]
[358397965,1745066605587,-390.0,0.00054,120]
[358397966,1745066605619,-200.0,0.00054234,45]
[358397967,1745066605649,-300.0,0.00054338,120]
[358397968,1745066605679,-2647.72034734,0.00054378,30]
[358397969,1745066605708,-14147.37799815,0.00054395,30]
[358397970,1745066605736,-14147.37799815,0.00054396,30]
[358397971,1745066605764,-2036.97269298,0.00054422,30]
[358397972,1745066605791,-200918.5341776,0.00054423,30]
[358397973,1745066605821,-6709.6379756,0.00054433,30]
[358397974,1745066605849,-6709.6379756,0.00054443,30]
[358397975,1745066605878,-23650.0319168,0.00054447,30]
[358397976,1745066605906,-200918.5341776,0.00054455,30]
[358397977,1745066605934,-14147.37799815,0.00054457,30]
[358397978,1745066605962,-2647.72034734,0.00054478,30]
[358397979,1745066605988,-6709.6379756,0.0005448,30]
[358397980,1745066606015,-200.0,0.00054493,30]
[358397981,1745066606056,-2036.97269298,0.00054509,30]
[358397982,1745066606086,-2036.97269298,0.0005452,30]
[358397983,1745066606116,-2036.97269298,0.00054522,30]
[358397984,1745066606146,-2647.72034734,0.00054527,30]
[358397985,1745066606176,-200918.5341776,0.00054546,30]
[358397986,1745066606205,-2647.72034734,0.00054553,30]
[358397987,1745066606239,-200918.5341776,0.00054557,30]
[358397988,1745066606270,-9173.72268541,0.00054596,30]
[358397989,1745066606299,-9173.72268541,0.000546,30]
[358397990,1745066606329,-14147.37799815,0.00054603,30]
[358397991,1745066606358,-9173.72268541,0.00054604,30]
[358397992,1745066606390,-9173.72268541,0.00054613,30]
[358397993,1745066606418,-9173.72268541,0.00054628,30]
[358397994,1745066606447,-6709.6379756,0.00054631,30]
[358397995,1745066606478,-2036.97269298,0.00054664,30]
[358397996,1745066606507,-2647.72034734,0.00054678,30]
[358397997,1745066606536,-14147.37799815,0.0005469,30]
[358397998,1745066606565,-6709.6379756,0.0005469,30]
[358397999,1745066606594,-200.0,0.000547,99]
[358398000,1745066606627,-203.0,0.0005479,30]
[358398001,1745066606655,-209.0,0.0005479,30]
[358398002,1745066606684,-500.0,0.00054794,120]
[358398003,1745066606714,-1152.32,0.00054794,120]
[358398004,1745066606745,-503.59903478,0.00054794,120]
[358398005,1745066606774,-500.0,0.00054794,120]
[358398006,1745066606801,-500.0,0.00054794,120]
[358398007,1745066606830,-500.0,0.00054794,120]
[358398008,1745066606859,-500.0,0.00054794,120]
[358398009,1745066606887,-300.0,0.00054794,120]
[358398010,1745066606915,-500.0,0.00054794,120]
[358398011,1745066606943,-504.61573355,0.00054794,120]
[358398012,1745066606975,-500.0,0.00054794,120]
[358398013,1745066607005,-500.0,0.00054794,120]
[358398014,1745066607034,-1000.0,0.00054794,35]
[358398015,1745066607064,-251.14045647,0.00054794,120]
[358398016,1745066607096,-500.0,0.00054794,120]
[358398017,1745066607126,-500.0,0.00054794,120]
[358398018,1745066607156,-500.0,0.00054794,120]
[358398019,1745066607186,-500.0,0.00054794,120]
[358398020,1745066607215,-500.0,0.00054794,120]
[358398021,1745066607244,-530.01769642,0.00054794,120]
[358398022,1745066607274,-599.48,0.00054794,120]
[358398023,1745066607306,-500.0,0.00054794,120]
[358398024,1745066607336,-497.81119,0.00054794,120]
[358398025,1745066607367,-500.0,0.00054794,120]
[358398026,1745066607398,-500.0,0.00054794,120]
[358398027,1745066607428,-500.0,0.00054794,120]
[358398028,1745066607458,-500.0,0.00054794,120]
[358398029,1745066607488,-619.79,0.00054794,120]
[358398030,1745066607518,-109749.11,0.00054794,120]
[358398031,1745066607550,-525.64,0.00054794,120]
[358398032,1745066607582,-500.0,0.00054794,120]
[358398033,1745066607612,-500.0,0.00054794,120]
[358398034,1745066607642,-150.0,0.00054794,120]
[358398035,1745066607673,-500.0,0.00054794,120]
[358398036,1745066607701,-514.99925637,0.00054794,120]
[358398037,1745066607730,-500.0,0.00054794,120]
[358398038,1745066607758,-500.0,0.00054794,120]
[358398039,1745066607786,-500.0,0.00054794,120]
[358398040,1745066607815,-500.0,0.00054794,120]
[358398041,1745066607845,-290.19571088,0.00054794,120]
[358398042,1745066607874,-500.0,0.00054794,120]
[358398043,1745066607900,-500.0,0.00054794,120]
[358398044,1745066607927,-697.66,0.00054794,120]
[358398045,1745066607955,-500.0,0.00054794,120]
[358398046,1745066607984,-500.0,0.00054794,120]
[358398047,1745066608012,-500.0,0.00054794,120]
[358398048,1745066608042,-875.53,0.00054794,120]
[358398049,1745066608070,-500.0,0.00054794,120]
[358398050,1745066608242,153.0,0.00049977,60]
[358398051,1745066608283,153.0,0.00049977,60]
[358398052,1745066608324,153.0,0.00049977,60]
[358398053,1745066608367,153.0,0.00049977,60]
[358398054,1745066608664,500.0,0.00048191,120]
[358398055,1745066608699,104927.69693805,0.00048191,30]
[358398056,1745066621907,500.0,0.00048193,120]
[358398057,1745066623118,500.0,0.00054794,120]
[358398058,1745066624082,1104.31,0.00054794,120]
[358398059,1745066624784,153.0,0.00049967,60]
[358398060,1745066624998,153.0,0.00049967,60]
[358398061,1745066625296,153.0,0.00049967,60]
[358398062,1745066625499,153.0,0.00049967,60]
[358398063,1745066625703,153.0,0.00049967,60]
[358398064,1745066637234,49000.0,0.00054794,30]
[358398065,1745066654446,498.59800413,0.00054794,120]
[358398066,1745066658266,500.0,0.00048193,120]
[358398067,1745066675968,105176.23,0.00054794,120]
[358398068,1745066692400,503.74,0.00054794,120]
[358398069,1745066707749,4506.11,0.0004,30]
[358398070,1745066795229,-300.0,0.00019397,2]
[358398071,1745066795250,-23900.0,0.00019398,2]
[358398072,1745066795271,-250.0,0.00019427,2]
[358398073,1745066795291,-500.0,0.00019726,2]
[358398074,1745066795313,-1000.0,0.00019745,2]
[358398075,1745066795335,-150.0,0.00019781,2]
[358398076,1745066795357,-222.825513,0.00019799,2]
[358398077,1745066795377,-4518.89831882,0.00019799,2]
[358398078,1745066795399,-810.80239504,0.000199,2]
[358398079,1745066795420,-644.55499115,0.000199,2]
[358398080,1745066795445,-152.0,0.00019969,2]
[358398081,1745066795470,-359.64,0.00019969,2]
[358398082,1745066795492,-157.67479573,0.00019985,2]
[358398083,1745066795520,-550.0,0.00019985,2]
[358398084,1745066795543,-214.56659968,0.0001999,2]
[358398085,1745066795566,-214.56659968,0.0001999,2]
[358398086,1745066795594,-300.0,0.00019999,2]
[358398087,1745066795615,-21017.33,0.0002,2]
[358398088,1745066795638,-151732.41303403,0.0002,2]
[358398089,1745066795662,-6710159.91775287,0.0002,2]
[358398090,1745066824214,499.999999,0.00048193,120]
[358398091,1745066825768,-300.0,0.00019999,2]
[358398092,1745066825795,-1429403.59901464,0.0002,2]
[358398093,1745066825819,-3273.02968807,0.0002,2]
[358398094,1745066825845,-23680.05834271,0.0002,2]
[358398095,1745066825870,-28624.98552121,0.0002,2]
[358398096,1745066825897,-4999611.92248706,0.0002,2]
[358398097,1745066825924,-50000.0,0.0002,2]
[358398098,1745066825950,-1804.6,0.0002,2]
[358398099,1745066825975,-6653.0,0.0002,2]
[358398100,1745066825998,-5644.60057402,0.0002,2]
[358398101,1745066826022,-10040719.30554459,0.0002,2]
[358398102,1745066826047,-319.109529,0.0002,2]
[358398103,1745066826072,-14346.25691897,0.0002,2]
[358398104,1745066826099,-14346.25691897,0.0002,2]
[358398105,1745066826125,-14346.25691897,0.0002,2]
[358398106,1745066826152,-14346.25691897,0.0002,2]
[358398107,1745066826177,-696.747102,0.0002,2]
[358398108,1745066826201,-155.692439,0.0002,2]
[358398109,1745066826224,-151.0,0.0002,2]
[358398110,1745066826247,-151.0,0.0002,2]
[358398111,1745066826459,-151.0,0.0002,2]
[358398112,1745066826485,-151.0,0.0002,2]
[358398113,1745066826513,-154.171447,0.0002,2]
[358398114,1745066826547,-155.396592,0.0002,2]
[358398115,1745066826579,-153.018722,0.0002,2]
[358398116,1745066826607,-151.0,0.0002,2]
[358398117,1745066826635,-151.0,0.0002,2]
[358398118,1745066826663,-151.0,0.0002,2]
[358398119,1745066826690,-151.0,0.0002,2]
[358398120,1745066826716,-151.0,0.0002,2]
[358398121,1745066826741,-151.0,0.0002,2]
[358398122,1745066826768,-151.0,0.0002,2]
[358398123,1745066826794,-151.0,0.0002,2]
[358398124,1745066826820,-151.0,0.0002,2]
[358398125,1745066826845,-151.0,0.0002,2]
[358398126,1745066826869,-155.848723,0.0002,2]
[358398127,1745066826893,-151.0,0.0002,2]
[358398128,1745066826918,-151.0,0.0002,2]
[358398129,1745066826944,-151.0,0.0002,2]
[358398130,1745066826970,-151.0,0.0002,2]
[358398131,1745066826994,-152.885884,0.0002,2]
[358398132,1745066827018,-276.502687,0.0002,2]
[358398133,1745066827048,-151.0,0.0002,2]
[358398134,1745066827075,-276.502687,0.0002,2]
[358398135,1745066827100,-154.567456,0.0002,2]
[358398136,1745066827126,-151.0,0.0002,2]
[358398137,1745066827152,-151.0,0.0002,2]
[358398138,1745066827178,-151.0,0.0002,2]
[358398139,1745066827203,-151.0,0.0002,2]
[358398140,1745066827229,-151.0,0.0002,2]
[358398141,1745066827256,-151.0,0.0002,2]
[358398142,1745066827282,-151.0,0.0002,2]
[358398143,1745066827306,-159.0,0.0002,2]
[358398144,1745066827331,-151.0,0.0002,2]
[358398145,1745066827357,-151.0,0.0002,2]
[358398146,1745066827382,-151.0,0.0002,2]
[358398147,1745066827408,-152.979305,0.0002,2]
[358398148,1745066827432,-151.0,0.0002,2]
[358398149,1745066827457,-151.0,0.0002,2]
[358398150,1745066827482,-151.0,0.0002,2]
[358398151,1745066827510,-153.822325,0.0002,2]
[358398152,1745066827535,-217.740566,0.0002,2]
[358398153,1745066827560,-151.0,0.0002,2]
[358398154,1745066827585,-151.0,0.0002,2]
[358398155,1745066827610,-151.0,0.0002,2]
[358398156,1745066827637,-151.0,0.0002,2]
[358398157,1745066827664,-217.740566,0.0002,2]
[358398158,1745066827690,-156.013009,0.0002,2]
[358398159,1745066827715,-151.0,0.0002,2]
[358398160,1745066827742,-151.0,0.0002,2]
[358398161,1745066827778,-151.0,0.0002,2]
[358398162,1745066827809,-153.374524,0.0002,2]
[358398163,1745066827835,-151.0,0.0002,2]
[358398164,1745066827862,-151.0,0.0002,2]
[358398165,1745066827887,-151.0,0.0002,2]
[358398166,1745066827912,-151.0,0.0002,2]
[358398167,1745066827936,-151.0,0.0002,2]
[358398168,1745066827962,-190.687953,0.0002,2]
[358398169,1745066827990,-151.0,0.0002,2]
[358398170,1745066828016,-151.0,0.0002,2]
[358398171,1745066828046,-151.0,0.0002,2]
[358398172,1745066828086,-154.64611,0.0002,2]
[358398173,1745066828118,-152.915839,0.0002,2]
[358398174,1745066828153,-151.0,0.0002,2]
[358398175,1745066828185,-151.0,0.0002,2]
[358398176,1745066828217,-151.0,0.0002,2]
[358398177,1745066828249,-155.951064,0.0002,2]
[358398178,1745066828279,-155.120484,0.0002,2]
[358398179,1745066828311,-194.396954,0.0002,2]
[358398180,1745066828344,-194.396954,0.0002,2]
[358398181,1745066828377,-151.0,0.0002,2]
[358398182,1745066828408,-151.0,0.0002,2]
[358398183,1745066828441,-151.0,0.0002,2]
[358398184,1745066828472,-159.60576,0.0002,2]
[358398185,1745066828508,-151.0,0.0002,2]
[358398186,1745066828543,-151.0,0.0002,2]
[358398187,1745066828576,-160.906993,0.0002,2]
[358398188,1745066828618,-151.0,0.0002,2]
[358398189,1745066828649,-151.0,0.0002,2]
[358398190,1745066828679,-151.0,0.0002,2]
[358398191,1745066828711,-151.0,0.0002,2]
[358398192,1745066828746,-151.0,0.0002,2]
[358398193,1745066828777,-151.0,0.0002,2]
[358398194,1745066828806,-151.0,0.0002,2]
[358398195,1745066828840,-151.0,0.0002,2]
[358398196,1745066828872,-151.0,0.0002,2]
[358398197,1745066828902,-151.0,0.0002,2]
[358398198,1745066828930,-151.0,0.0002,2]
[358398199,1745066828961,-151.0,0.0002,2]
[358398200,1745066828994,-8981.65536038,0.0002001,2]
[358398201,1745066829023,-4951.90027988,0.0002001,2]
[358398202,1745066829052,-5772.0,0.0002001,2]
[358398203,1745066829081,-14698.44,0.00020055,2]
[358398204,1745066829111,-177.602425,0.00020145,2]
[358398205,1745066829139,-151.0,0.00020145,2]
[358398206,1745066829171,-151.0,0.00020145,2]
[358398207,1745066829200,-151.0,0.00020145,2]